[Event "Kupreichik Memorial Open 2018"]
[Site "Minsk"]
[Date "2018.06.21"]
[Round "3"]
[White "Rakhmangulova, Anastasiya"]
[Black "Tkachou, Viktar"]
[Result "1-0"]
[ECO "B42"]
[WhiteElo "2244"]
[BlackElo "1791"]
[Annotator "NA"]
[PlyCount "77"]
[EventDate "2018.06.21"]
[EventCountry "BLR"]
[SourceTitle "playchess.com"]
[Source "ChessBase"]
[SourceQuality "1"]
[TimeControl "900+10"]

1. e4 {[%emt 0:00:00]} c5 {[%emt 0:00:03]} 2. Nf3 {[%emt 0:00:00]} e6 {[%emt 0:00:01]} 3. d4 {[%emt 0:00:00]} cxd4 {[%emt 0:00:02]} 4. Nxd4 {[%emt 0:00:00]} a6 {[%emt 0:00:03]} 5. Bd3 {[%emt 0:00:02]} d6 {[%emt 0:00:03]} 6. c4 {[%emt 0:00:03]} Nf6 {[%emt 0:00:03]} 7. O-O {[%emt 0:00:08]} Be7 {[%emt 0:00:04]} 8. Nc3 {[%emt 0:00:03]} O-O {[%emt 0:00:07]} 9. Be3 {[%emt 0:00:39]} b6 {[%emt 0:00:35]} 10. f4 {[%emt 0:00:22]} Qc7 {[%emt 0:00:10]} 11. Rc1 {[%emt 0:00:24]} Bb7 {[%emt 0:00:10]} 12. f5 {[%emt 0:00:04]} e5 {[%emt 0:01:19]} 13. Nc2 {[%emt 0:00:31]} Nbd7 {[%emt 0:00:40]} 14. b4 {[%emt 0:00:16]} b5 {[%emt 0:02:11]} 15. Nd5 {[%emt 0:00:21]} Bxd5 {[%emt 0:01:07]} 16. cxd5 {[%emt 0:00:02]} Qd8 {[%emt 0:00:12]} 17. Na1 {[%emt 0:01:06]} Rc8 {[%emt 0:00:59]} 18. Nb3 {[%emt 0:00:29]} Rxc1 {[%emt 0:00:44]} 19. Bxc1 {[%emt 0:00:43]} Qb6+ {[%emt 0:01:23]} 20. Kh1 {[%emt 0:00:04]} Bd8 {[%emt 0:00:23]} 21. Qe2 {[%emt 0:01:54]} Qb8 {[%emt 0:01:13]} 22. Be3 {[%emt 0:00:25]} Bc7 {[%emt 0:00:41]} 23. g4 {[%emt 0:00:36]} h6 {[%emt 0:00:33]} 24. h4 {[%emt 0:00:03]} Nh7 {[%emt 0:01:19]} 25. g5 {[%emt 0:00:17]} hxg5 {[%emt 0:00:33]} 26. hxg5 {[%emt 0:00:02]} Bb6 {[%emt 0:00:08]} 27. Rg1 {[%emt 0:02:59]} Bxe3 {[%emt 0:01:42]} 28. Qxe3 {[%emt 0:00:01]} g6 {[%emt 0:00:10]} 29. f6 {[%emt 0:04:14]} Nhxf6 {[%emt 0:00:11]} 30. gxf6 {[%emt 0:00:01]} Nxf6 {[%emt 0:00:03]} 31. Qh6 {[%emt 0:00:25]} Qc7 {[%emt 0:02:08]} 32. Na5 {[%emt 0:01:04]} Qc3 {[%emt 0:00:31]} 33. Nc6 {[%emt 0:00:05]} Re8 {[%emt 0:00:02]} 34. Qe3 {[%emt 0:02:50]} Nh5 {[%emt 0:00:18]} 35. Rc1 {[%emt 0:00:11]} Qb2 {[%emt 0:00:11]} 36. Qh6 {[%emt 0:00:13]} Ng3+ {[%emt 0:00:38]} 37. Kg1 {[%emt 0:00:02]} Ne2+ {[%emt 0:00:01]} 38. Bxe2 {[%emt 0:00:04]} Qxe2 {[%emt 0:00:01]} 39. Ne7+ {[%emt 0:00:03]} 1-0

[Event "Kupreichik Memorial Open 2018"]
[Site "Minsk"]
[Date "2018.06.21"]
[Round "3"]
[White "Katashuk, Uladzislau"]
[Black "Mialik, Uladzislau"]
[Result "1/2-1/2"]
[ECO "B07"]
[WhiteElo "2149"]
[BlackElo "1768"]
[Annotator "NA"]
[PlyCount "91"]
[EventDate "2018.06.21"]
[EventCountry "BLR"]
[SourceTitle "playchess.com"]
[Source "ChessBase"]
[SourceQuality "1"]
[TimeControl "900+10"]

1. e4 {[%emt 0:00:00]} d6 {[%emt 0:00:01]} 2. d4 {[%emt 0:00:00]} Nf6 {[%emt 0:00:01]} 3. Nc3 {[%emt 0:00:00]} g6 {[%emt 0:00:01]} 4. Bc4 {[%emt 0:00:08]} Bg7 {[%emt 0:00:02]} 5. Qe2 {[%emt 0:00:01]} O-O {[%emt 0:00:14]} 6. Nf3 {[%emt 0:00:14]} c6 {[%emt 0:02:57]} 7. e5 {[%emt 0:00:19]} dxe5 {[%emt 0:00:42]} 8. dxe5 {[%emt 0:00:02]} Nd5 {[%emt 0:00:11]} 9. Bd2 {[%emt 0:00:01]} Nxc3 {[%emt 0:01:56]} 10. Bxc3 {[%emt 0:00:05]} e6 {[%emt 0:00:04]} 11. Rd1 {[%emt 0:00:34]} Qc7 {[%emt 0:00:06]} 12. h4 {[%emt 0:00:40]} Nd7 {[%emt 0:00:28]} 13. h5 {[%emt 0:00:16]} b5 {[%emt 0:00:09]} 14. Bd3 {[%emt 0:02:16]} Bb7 {[%emt 0:00:45]} 15. hxg6 {[%emt 0:00:13]} hxg6 {[%emt 0:00:49]} 16. Kf1 {[%emt 0:06:44]} a6 {[%emt 0:01:24]} 17. Re1 {[%emt 0:00:11]} c5 {[%emt 0:00:53]} 18. Be4 {[%emt 0:00:33]} Rfd8 {[%emt 0:01:07]} 19. Bxb7 {[%emt 0:00:32]} Qxb7 {[%emt 0:00:02]} 20. b3 {[%emt 0:01:27]} Nb6 {[%emt 0:00:58]} 21. Ng5 {[%emt 0:00:50]} Rd7 {[%emt 0:00:34]} 22. Rh7 {[%emt 0:00:58]} b4 {[%emt 0:01:00]} 23. Bb2 {[%emt 0:01:14]} Rad8 {[%emt 0:00:06]} 24. Qg4 {[%emt 0:00:08]} Rd2 {[%emt 0:02:54]} 25. Qh3 {[%emt 0:01:13]} Rd1 {[%emt 0:01:10]} 26. Rxg7+ {[%emt 0:00:17]} Kxg7 {[%emt 0:00:01]} 27. Qh7+ {[%emt 0:00:01]} Kf8 {[%emt 0:00:02]} 28. Nxe6+ {[%emt 0:00:21]} Ke7 {[%emt 0:00:29]} 29. Nxd8 {[%emt 0:00:12]} Rxe1+ {[%emt 0:00:02]} 30. Kxe1 {[%emt 0:00:01]} Qe4+ {[%emt 0:00:11]} 31. Kd2 {[%emt 0:00:18]} Qf4+ {[%emt 0:00:09]} 32. Kd3 {[%emt 0:00:09]} Kxd8 {[%emt 0:00:05]} 33. Qh8+ {[%emt 0:00:03]} Kd7 {[%emt 0:00:07]} 34. Qf6 {[%emt 0:00:16]} c4+ {[%emt 0:00:14]} 35. bxc4 {[%emt 0:00:18]} Qxc4+ {[%emt 0:00:02]} 36. Kd2 {[%emt 0:00:01]} Qd5+ {[%emt 0:00:17]} 37. Ke2 {[%emt 0:00:14]} Nc4 {[%emt 0:00:01]} 38. e6+ {[%emt 0:00:06]} fxe6 {[%emt 0:00:11]} 39. Qd4 {[%emt 0:00:11]} Nxb2 {[%emt 0:00:21]} 40. Qxb2 {[%emt 0:00:02]} Qe4+ {[%emt 0:00:25]} 41. Kf1 {[%emt 0:00:01]} a5 {[%emt 0:00:07]} 42. f3 {[%emt 0:00:16]} Qc4+ {[%emt 0:00:09]} 43. Kf2 {[%emt 0:00:01]} Qc5+ {[%emt 0:00:04]} 44. Kg3 {[%emt 0:00:09]} Qg5+ {[%emt 0:00:02]} 45. Kh2 {[%emt 0:00:05]} Qh4+ {[%emt 0:00:04]} 46. Kg1 {[%emt 0:00:02]} 1/2-1/2

[Event "Kupreichik Memorial Open 2018"]
[Site "Minsk"]
[Date "2018.06.21"]
[Round "3"]
[White "Sirotkina, Nina"]
[Black "Kolosovskaya, Olga"]
[Result "1-0"]
[ECO "D00"]
[WhiteElo "2116"]
[BlackElo "1747"]
[Annotator "NA"]
[PlyCount "99"]
[EventDate "2018.06.21"]
[EventCountry "BLR"]
[SourceTitle "playchess.com"]
[Source "ChessBase"]
[SourceQuality "1"]
[TimeControl "900+10"]

1. d4 {[%emt 0:00:00]} d5 {[%emt 0:00:01]} 2. Bf4 {[%emt 0:00:00]} Nf6 {[%emt 0:00:01]} 3. e3 {[%emt 0:00:04]} e6 {[%emt 0:00:01]} 4. Nd2 {[%emt 0:00:50]} Bd6 {[%emt 0:00:10]} 5. Bg3 {[%emt 0:00:05]} O-O {[%emt 0:00:04]} 6. Bd3 {[%emt 0:00:11]} c5 {[%emt 0:00:02]} 7. c3 {[%emt 0:00:11]} Nc6 {[%emt 0:00:02]} 8. Ngf3 {[%emt 0:01:23]} b6 {[%emt 0:00:01]} 9. Ne5 {[%emt 0:00:40]} Bb7 {[%emt 0:00:33]} 10. O-O {[%emt 0:00:19]} Ne7 {[%emt 0:00:28]} 11. f4 {[%emt 0:01:20]} Nf5 {[%emt 0:00:06]} 12. Bf2 {[%emt 0:00:22]} Be7 {[%emt 0:00:02]} 13. Qe2 {[%emt 0:01:07]} Nd6 {[%emt 0:00:03]} 14. Bh4 {[%emt 0:00:30]} Nfe4 {[%emt 0:01:08]} 15. Bxe7 {[%emt 0:00:37]} Qxe7 {[%emt 0:00:01]} 16. Bxe4 {[%emt 0:01:00]} Nxe4 {[%emt 0:00:39]} 17. Nxe4 {[%emt 0:00:19]} dxe4 {[%emt 0:00:02]} 18. dxc5 {[%emt 0:00:05]} bxc5 {[%emt 0:02:41]} 19. Rfd1 {[%emt 0:00:16]} Rfd8 {[%emt 0:00:18]} 20. Rxd8+ {[%emt 0:02:05]} Rxd8 {[%emt 0:00:06]} 21. Rd1 {[%emt 0:00:04]} f6 {[%emt 0:02:56]} 22. Ng4 {[%emt 0:00:34]} Rd6 {[%emt 0:02:20]} 23. Nf2 {[%emt 0:00:32]} Qd7 {[%emt 0:00:29]} 24. c4 {[%emt 0:00:47]} f5 {[%emt 0:00:28]} 25. Rxd6 {[%emt 0:00:31]} Qxd6 {[%emt 0:00:01]} 26. Qd1 {[%emt 0:00:02]} Qxd1+ {[%emt 0:01:16]} 27. Nxd1 {[%emt 0:00:01]} Kf7 {[%emt 0:00:11]} 28. Nc3 {[%emt 0:00:17]} Ke7 {[%emt 0:00:40]} 29. Kf2 {[%emt 0:00:12]} Bc6 {[%emt 0:00:02]} 30. b3 {[%emt 0:00:32]} Kd6 {[%emt 0:01:45]} 31. g3 {[%emt 0:00:15]} e5 {[%emt 0:00:02]} 32. h4 {[%emt 0:00:29]} exf4 {[%emt 0:00:03]} 33. gxf4 {[%emt 0:00:11]} Ke6 {[%emt 0:01:03]} 34. Ke2 a6 {[%emt 0:00:03]} 35. Kf2 {[%emt 0:00:44]} g6 36. Kg3 {[%emt 0:00:35]} Kf6 {[%emt 0:02:14]} 37. Ne2 {[%emt 0:00:48]} h6 {[%emt 0:00:09]} 38. Nc3 {[%emt 0:00:11]} Kf7 {[%emt 0:00:27]} 39. h5 {[%emt 0:01:12]} g5 {[%emt 0:00:02]} 40. fxg5 {[%emt 0:00:42]} hxg5 {[%emt 0:00:01]} 41. Nd5 {[%emt 0:00:02]} Kg7 {[%emt 0:00:05]} 42. Nc7 {[%emt 0:00:20]} Kh6 {[%emt 0:00:00]} 43. Nxa6 {[%emt 0:00:07]} Kxh5 {[%emt 0:00:08]} 44. Nxc5 {[%emt 0:00:01]} Kg6 {[%emt 0:00:12]} 45. b4 {[%emt 0:00:08]} Kf6 {[%emt 0:00:02]} 46. b5 {[%emt 0:00:03]} Ba8 {[%emt 0:00:21]} 47. b6 {[%emt 0:00:15]} Ke5 {[%emt 0:00:04]} 48. b7 {[%emt 0:00:05]} Bxb7 {[%emt 0:00:15]} 49. Nxb7 {[%emt 0:00:02]} f4+ {[%emt 0:00:02]} 50. Kf2 {[%emt 0:00:25]} 1-0

[Event "Kupreichik Memorial Open 2018"]
[Site "Minsk"]
[Date "2018.06.21"]
[Round "3"]
[White "Kaliadzich, Maryia"]
[Black "Shvedau, Mikhail"]
[Result "1-0"]
[ECO "A80"]
[WhiteElo "2058"]
[BlackElo "1742"]
[Annotator "NA"]
[PlyCount "83"]
[EventDate "2018.06.21"]
[EventCountry "BLR"]
[SourceTitle "playchess.com"]
[Source "ChessBase"]
[SourceQuality "1"]
[TimeControl "900+10"]

1. d4 {[%emt 0:00:00]} f5 {[%emt 0:00:03]} 2. Nf3 {[%emt 0:00:00]} Nf6 {[%emt 0:00:02]} 3. g3 {[%emt 0:00:00]} e6 {[%emt 0:00:02]} 4. Bg2 {[%emt 0:00:03]} d5 {[%emt 0:00:03]} 5. O-O {[%emt 0:00:06]} Bd6 {[%emt 0:00:01]} 6. c4 {[%emt 0:00:05]} c6 {[%emt 0:00:01]} 7. b3 {[%emt 0:00:15]} Qe7 {[%emt 0:00:03]} 8. a4 {[%emt 0:00:31]} O-O {[%emt 0:00:08]} 9. Ba3 {[%emt 0:00:11]} Bxa3 {[%emt 0:00:08]} 10. Nxa3 {[%emt 0:00:02]} Bd7 {[%emt 0:00:14]} 11. e3 {[%emt 0:00:19]} Be8 {[%emt 0:00:04]} 12. Qc1 {[%emt 0:02:23]} Nbd7 {[%emt 0:00:12]} 13. Nc2 {[%emt 0:00:30]} Ne4 {[%emt 0:00:11]} 14. Qb2 {[%emt 0:00:19]} Ndf6 {[%emt 0:00:12]} 15. Nce1 {[%emt 0:00:17]} g5 {[%emt 0:00:38]} 16. Nd3 {[%emt 0:00:10]} g4 {[%emt 0:00:37]} 17. Nfe5 {[%emt 0:00:09]} Ng5 {[%emt 0:00:23]} 18. a5 {[%emt 0:00:34]} a6 {[%emt 0:00:07]} 19. Nf4 {[%emt 0:01:07]} Nh5 {[%emt 0:00:38]} 20. Nfd3 {[%emt 0:01:34]} Nf6 {[%emt 0:00:27]} 21. b4 {[%emt 0:00:37]} h5 {[%emt 0:00:44]} 22. Rac1 {[%emt 0:00:25]} Qh7 {[%emt 0:00:22]} 23. Nf4 {[%emt 0:00:15]} Kg7 {[%emt 0:00:45]} 24. b5 {[%emt 0:01:10]} h4 {[%emt 0:02:59]} 25. bxa6 {[%emt 0:00:41]} hxg3 {[%emt 0:00:31]} 26. fxg3 {[%emt 0:00:12]} Rh8 {[%emt 0:00:26]} 27. Bh1 {[%emt 0:02:10]} Bf7 {[%emt 0:01:48]} 28. axb7 {[%emt 0:00:14]} Rab8 {[%emt 0:00:16]} 29. a6 {[%emt 0:00:12]} Nfe4 {[%emt 0:00:11]} 30. Bxe4 {[%emt 0:00:33]} Nxe4 {[%emt 0:00:53]} 31. Qg2 {[%emt 0:00:34]} Ng5 {[%emt 0:00:09]} 32. cxd5 {[%emt 0:00:19]} exd5 {[%emt 0:01:01]} 33. Rxc6 {[%emt 0:00:20]} Rbe8 {[%emt 0:00:30]} 34. a7 {[%emt 0:00:51]} Rxe5 {[%emt 0:01:33]} 35. dxe5 {[%emt 0:00:06]} Nf3+ {[%emt 0:00:00]} 36. Rxf3 {[%emt 0:00:20]} gxf3 {[%emt 0:00:02]} 37. Qf2 {[%emt 0:00:15]} d4 {[%emt 0:00:09]} 38. b8=Q {[%emt 0:00:29]} dxe3 {[%emt 0:00:06]} 39. Qxh8+ {[%emt 0:00:09]} Qxh8 {[%emt 0:00:09]} 40. Qxe3 {[%emt 0:00:16]} Qa8 {[%emt 0:00:02]} 41. Rc7 {[%emt 0:00:13]} Qd8 {[%emt 0:00:06]} 42. Ne6+ 1-0

[Event "Kupreichik Memorial Open 2018"]
[Site "Minsk"]
[Date "2018.06.21"]
[Round "3"]
[White "Runets, Ivan"]
[Black "Arlou, Valery"]
[Result "0-1"]
[ECO "B06"]
[WhiteElo "2027"]
[BlackElo "1743"]
[Annotator "NA"]
[PlyCount "142"]
[EventDate "2018.06.21"]
[EventCountry "BLR"]
[SourceTitle "playchess.com"]
[Source "ChessBase"]
[SourceQuality "1"]
[TimeControl "900+10"]

1. e4 {[%emt 0:00:00]} g6 {[%emt 0:00:05]} 2. d4 {[%emt 0:00:00]} Bg7 {[%emt 0:00:02]} 3. f4 {[%emt 0:00:01]} d6 {[%emt 0:00:01]} 4. Nf3 {[%emt 0:00:02]} c5 {[%emt 0:00:16]} 5. c3 {[%emt 0:00:11]} cxd4 {[%emt 0:00:03]} 6. cxd4 {[%emt 0:00:07]} Nf6 {[%emt 0:00:23]} 7. Bd3 {[%emt 0:00:17]} O-O {[%emt 0:00:09]} 8. O-O {[%emt 0:00:02]} Bg4 {[%emt 0:00:09]} 9. Be3 {[%emt 0:00:38]} Nc6 {[%emt 0:00:15]} 10. Nc3 {[%emt 0:00:47]} e5 {[%emt 0:01:12]} 11. fxe5 {[%emt 0:01:32]} dxe5 {[%emt 0:00:01]} 12. d5 {[%emt 0:00:02]} Nd4 {[%emt 0:00:33]} 13. Bxd4 {[%emt 0:00:28]} exd4 {[%emt 0:00:02]} 14. Ne2 {[%emt 0:00:04]} Qe7 {[%emt 0:00:52]} 15. Ng3 {[%emt 0:04:22]} Qb4 {[%emt 0:01:08]} 16. Qb3 {[%emt 0:00:10]} Qxb3 {[%emt 0:00:46]} 17. axb3 {[%emt 0:00:02]} Bxf3 {[%emt 0:00:09]} 18. gxf3 {[%emt 0:00:02]} Nd7 {[%emt 0:00:06]} 19. Bb5 {[%emt 0:00:22]} Nb6 {[%emt 0:03:15]} 20. b4 {[%emt 0:00:53]} a6 {[%emt 0:00:03]} 21. Bd3 {[%emt 0:00:02]} Rac8 {[%emt 0:00:27]} 22. Rac1 {[%emt 0:01:08]} Bh6 {[%emt 0:00:48]} 23. f4 {[%emt 0:02:13]} Rxc1 {[%emt 0:00:06]} 24. Rxc1 {[%emt 0:00:01]} Bxf4 {[%emt 0:00:03]} 25. Rc2 {[%emt 0:00:09]} Rc8 {[%emt 0:00:17]} 26. Rxc8+ {[%emt 0:00:02]} Nxc8 {[%emt 0:00:01]} 27. Ne2 {[%emt 0:00:12]} Be3+ {[%emt 0:00:05]} 28. Kg2 {[%emt 0:00:12]} f6 {[%emt 0:00:12]} 29. Kf3 {[%emt 0:00:40]} Nd6 {[%emt 0:00:09]} 30. Ng3 {[%emt 0:00:57]} Kf7 {[%emt 0:00:18]} 31. Ne2 {[%emt 0:00:22]} Ke7 {[%emt 0:00:19]} 32. h4 {[%emt 0:00:09]} Nf7 {[%emt 0:00:08]} 33. Bb1 {[%emt 0:02:36]} Ne5+ {[%emt 0:00:03]} 34. Kg3 {[%emt 0:00:04]} Kd6 {[%emt 0:01:10]} 35. h5 {[%emt 0:01:01]} gxh5 {[%emt 0:01:02]} 36. Kh4 {[%emt 0:00:17]} Nc4 {[%emt 0:01:42]} 37. b3 {[%emt 0:00:24]} Nd2 {[%emt 0:00:53]} 38. Bc2 {[%emt 0:00:09]} Ke5 {[%emt 0:00:08]} 39. Kxh5 {[%emt 0:00:09]} b5 {[%emt 0:01:09]} 40. Ng3 {[%emt 0:00:38]} Nf3 {[%emt 0:00:44]} 41. Kg4 {[%emt 0:00:12]} Ne1 {[%emt 0:00:03]} 42. Bd1 {[%emt 0:00:04]} d3 {[%emt 0:00:08]} 43. d6 {[%emt 0:00:14]} Bb6 {[%emt 0:00:10]} 44. d7 {[%emt 0:00:03]} Ke6 {[%emt 0:00:22]} 45. Nh5 {[%emt 0:00:15]} Nc2 {[%emt 0:00:54]} 46. Nf4+ {[%emt 0:00:14]} Kxd7 {[%emt 0:00:11]} 47. Bf3 {[%emt 0:00:09]} Ne3+ {[%emt 0:00:13]} 48. Kh5 {[%emt 0:00:09]} d2 {[%emt 0:00:06]} 49. Nd5 {[%emt 0:00:04]} Bd4 {[%emt 0:00:13]} 50. Nxe3 {[%emt 0:00:07]} Bxe3 {[%emt 0:00:06]} 51. Kg4 {[%emt 0:00:12]} Ke6 {[%emt 0:00:06]} 52. Be2 {[%emt 0:00:11]} Ke5 {[%emt 0:00:06]} 53. Kf3 {[%emt 0:00:06]} Bd4 {[%emt 0:00:11]} 54. Bd1 {[%emt 0:00:07]} Bc3 {[%emt 0:00:04]} 55. Ke2 {[%emt 0:00:01]} Bxb4 {[%emt 0:00:02]} 56. Kd3 {[%emt 0:00:05]} h6 {[%emt 0:00:16]} 57. Ke3 {[%emt 0:00:09]} Ba5 {[%emt 0:00:40]} 58. Be2 {[%emt 0:00:21]} Bb4 {[%emt 0:00:20]} 59. Bd1 {[%emt 0:00:19]} f5 {[%emt 0:00:14]} 60. exf5 {[%emt 0:00:05]} Kxf5 {[%emt 0:00:02]} 61. Kf3 {[%emt 0:00:09]} h5 {[%emt 0:00:12]} 62. Kg3 {[%emt 0:00:21]} Kg5 {[%emt 0:00:03]} 63. Kf3 {[%emt 0:00:15]} h4 {[%emt 0:00:13]} 64. Bc2 {[%emt 0:00:07]} Bd6 {[%emt 0:00:26]} 65. Ke3 {[%emt 0:00:13]} Bf4+ {[%emt 0:00:02]} 66. Kf3 {[%emt 0:00:02]} h3 {[%emt 0:00:08]} 67. Kf2 {[%emt 0:00:06]} Kh4 {[%emt 0:00:04]} 68. Kf3 {[%emt 0:00:11]} Bg5 {[%emt 0:00:22]} 69. Bd1 {[%emt 0:00:06]} h2 {[%emt 0:00:20]} 70. Kg2 {[%emt 0:00:09]} Bf4 {[%emt 0:00:02]} 71. Bf3 {[%emt 0:00:00]} Kg5 {[%emt 0:00:00]} 0-1

[Event "Kupreichik Memorial Open 2018"]
[Site "Minsk"]
[Date "2018.06.21"]
[Round "3"]
[White "Romanovskij, Nikita"]
[Black "Bezenson, Anton"]
[Result "1/2-1/2"]
[ECO "A48"]
[WhiteElo "1990"]
[BlackElo "1732"]
[Annotator "NA"]
[PlyCount "64"]
[EventDate "2018.06.21"]
[EventCountry "BLR"]
[SourceTitle "playchess.com"]
[Source "ChessBase"]
[SourceQuality "1"]
[TimeControl "900+10"]

1. d4 {[%emt 0:00:00]} Nf6 {[%emt 0:00:01]} 2. Nf3 {[%emt 0:00:00]} g6 {[%emt 0:00:06]} 3. Bg5 {[%emt 0:00:00]} Bg7 {[%emt 0:00:04]} 4. Nbd2 {[%emt 0:00:02]} d5 {[%emt 0:00:07]} 5. e3 {[%emt 0:00:02]} O-O {[%emt 0:00:10]} 6. Bd3 {[%emt 0:00:01]} Nbd7 {[%emt 0:00:09]} 7. O-O {[%emt 0:00:06]} c5 {[%emt 0:00:46]} 8. c3 {[%emt 0:00:02]} Qb6 {[%emt 0:00:11]} 9. Rb1 {[%emt 0:01:04]} Re8 {[%emt 0:00:21]} 10. Re1 {[%emt 0:00:23]} e5 {[%emt 0:00:09]} 11. dxe5 {[%emt 0:00:02]} Nxe5 {[%emt 0:00:03]} 12. Nxe5 {[%emt 0:00:01]} Rxe5 {[%emt 0:00:02]} 13. Nf3 {[%emt 0:00:01]} Re8 {[%emt 0:00:24]} 14. c4 {[%emt 0:00:49]} dxc4 {[%emt 0:00:42]} 15. Bxc4 {[%emt 0:00:04]} Bf5 {[%emt 0:00:04]} 16. Rc1 {[%emt 0:01:28]} Rad8 {[%emt 0:00:23]} 17. Qb3 {[%emt 0:00:02]} Qxb3 {[%emt 0:00:16]} 18. Bxb3 {[%emt 0:00:01]} b6 {[%emt 0:00:32]} 19. Ba4 {[%emt 0:00:46]} Bd7 {[%emt 0:03:34]} 20. Bc2 {[%emt 0:01:02]} Bc6 {[%emt 0:00:29]} 21. Rcd1 {[%emt 0:02:00]} h6 {[%emt 0:00:24]} 22. Bh4 {[%emt 0:00:16]} g5 {[%emt 0:00:03]} 23. Bg3 {[%emt 0:00:02]} Ne4 {[%emt 0:00:06]} 24. Rxd8 {[%emt 0:02:31]} Rxd8 {[%emt 0:00:03]} 25. Be5 {[%emt 0:00:02]} Nd2 {[%emt 0:01:08]} 26. Bxg7 {[%emt 0:01:04]} Nxf3+ {[%emt 0:00:10]} 27. gxf3 {[%emt 0:00:01]} Kxg7 {[%emt 0:00:07]} 28. Rd1 {[%emt 0:00:07]} Rxd1+ {[%emt 0:00:25]} 29. Bxd1 {[%emt 0:00:01]} Bd5 {[%emt 0:00:03]} 30. a3 {[%emt 0:00:20]} Kf6 {[%emt 0:00:02]} 31. Kf1 {[%emt 0:00:02]} Ke5 {[%emt 0:00:30]} 32. Ke2 {[%emt 0:00:02]} b5 1/2-1/2

[Event "Kupreichik Memorial Open 2018"]
[Site "Minsk"]
[Date "2018.06.21"]
[Round "3"]
[White "Svjatocho, Andrej"]
[Black "Yurau, Maksim"]
[Result "1/2-1/2"]
[ECO "A08"]
[WhiteElo "1979"]
[BlackElo "1694"]
[Annotator "NA"]
[PlyCount "49"]
[EventDate "2018.06.21"]
[EventCountry "BLR"]
[SourceTitle "playchess.com"]
[Source "ChessBase"]
[SourceQuality "1"]
[TimeControl "900+10"]

1. e4 {[%emt 0:00:00]} c5 {[%emt 0:00:02]} 2. Nf3 {[%emt 0:00:00]} e6 {[%emt 0:00:01]} 3. d3 {[%emt 0:00:00]} d5 {[%emt 0:00:05]} 4. Nbd2 {[%emt 0:00:02]} Nc6 {[%emt 0:00:03]} 5. g3 {[%emt 0:00:02]} Nf6 {[%emt 0:00:16]} 6. Bg2 {[%emt 0:00:06]} Be7 {[%emt 0:00:12]} 7. O-O {[%emt 0:00:04]} O-O {[%emt 0:00:03]} 8. Re1 {[%emt 0:00:08]} Re8 {[%emt 0:01:36]} 9. c3 {[%emt 0:00:19]} b5 {[%emt 0:01:57]} 10. Qc2 {[%emt 0:00:36]} Bb7 {[%emt 0:01:15]} 11. Nb3 {[%emt 0:01:56]} c4 {[%emt 0:01:09]} 12. dxc4 {[%emt 0:00:03]} bxc4 {[%emt 0:00:12]} 13. Nbd2 {[%emt 0:00:27]} Bc5 {[%emt 0:00:29]} 14. e5 {[%emt 0:01:36]} Ng4 {[%emt 0:01:33]} 15. Re2 {[%emt 0:00:02]} Qc7 {[%emt 0:00:24]} 16. b4 {[%emt 0:00:39]} Be7 {[%emt 0:01:37]} 17. Nf1 {[%emt 0:00:27]} Ngxe5 {[%emt 0:00:20]} 18. Nxe5 {[%emt 0:00:09]} Nxe5 {[%emt 0:00:03]} 19. Bf4 {[%emt 0:00:07]} Bd6 {[%emt 0:00:06]} 20. Bxe5 {[%emt 0:00:45]} Bxe5 {[%emt 0:00:02]} 21. Ne3 {[%emt 0:00:08]} Rab8 {[%emt 0:03:12]} 22. Rae1 {[%emt 0:00:52]} Bd6 {[%emt 0:00:29]} 23. Nxd5 {[%emt 0:00:56]} Bxd5 {[%emt 0:00:10]} 24. Bxd5 {[%emt 0:00:03]} Red8 {[%emt 0:00:20]} 25. Be4 {[%emt 0:00:41]} 1/2-1/2

[Event "Kupreichik Memorial Open 2018"]
[Site "Minsk"]
[Date "2018.06.21"]
[Round "3"]
[White "Artsiomau, Stanislau"]
[Black "Halouchyts, Karalina"]
[Result "1-0"]
[ECO "B00"]
[WhiteElo "1954"]
[BlackElo "1603"]
[Annotator "NA"]
[PlyCount "107"]
[EventDate "2018.06.21"]
[EventCountry "BLR"]
[SourceTitle "playchess.com"]
[Source "ChessBase"]
[SourceQuality "1"]
[TimeControl "900+10"]

1. e4 {[%emt 0:00:00]} d6 {[%emt 0:00:03]} 2. g3 {[%emt 0:00:00]} Nf6 {[%emt 0:00:04]} 3. Bg2 {[%emt 0:00:00]} e5 {[%emt 0:00:30]} 4. d3 {[%emt 0:00:11]} g6 {[%emt 0:00:23]} 5. Nf3 {[%emt 0:00:05]} Bg7 {[%emt 0:00:03]} 6. O-O {[%emt 0:00:01]} O-O {[%emt 0:00:03]} 7. Bg5 {[%emt 0:00:18]} c6 {[%emt 0:01:44]} 8. Qd2 {[%emt 0:00:19]} Qc7 {[%emt 0:00:18]} 9. Bh6 {[%emt 0:00:14]} Re8 {[%emt 0:01:12]} 10. Bxg7 {[%emt 0:00:02]} Kxg7 {[%emt 0:00:02]} 11. Nh4 {[%emt 0:00:02]} d5 {[%emt 0:03:48]} 12. f3 {[%emt 0:00:59]} Nbd7 {[%emt 0:03:45]} 13. Nc3 {[%emt 0:00:18]} Nc5 {[%emt 0:02:17]} 14. Rae1 {[%emt 0:00:29]} b6 {[%emt 0:01:53]} 15. Nd1 {[%emt 0:00:06]} Bb7 {[%emt 0:00:15]} 16. Nf2 {[%emt 0:00:02]} Rad8 {[%emt 0:00:13]} 17. Qc1 {[%emt 0:00:51]} Bc8 {[%emt 0:00:23]} 18. Bh3 {[%emt 0:00:23]} Ne6 {[%emt 0:00:40]} 19. Kh1 {[%emt 0:00:36]} h6 {[%emt 0:00:20]} 20. Bg2 {[%emt 0:00:08]} Bb7 {[%emt 0:00:18]} 21. b3 {[%emt 0:00:18]} c5 {[%emt 0:00:04]} 22. Qa1 {[%emt 0:00:41]} Nd4 {[%emt 0:00:13]} 23. Qb2 {[%emt 0:00:17]} c4 {[%emt 0:00:13]} 24. c3 {[%emt 0:00:31]} Ne6 {[%emt 0:00:10]} 25. exd5 {[%emt 0:00:06]} Bxd5 {[%emt 0:00:07]} 26. dxc4 {[%emt 0:00:07]} Bc6 {[%emt 0:00:03]} 27. Rd1 {[%emt 0:00:35]} Nc5 {[%emt 0:00:13]} 28. b4 {[%emt 0:00:25]} Ne6 {[%emt 0:00:11]} 29. Rxd8 {[%emt 0:00:44]} Rxd8 {[%emt 0:00:02]} 30. Rd1 {[%emt 0:00:01]} Rxd1+ {[%emt 0:00:10]} 31. Nxd1 {[%emt 0:00:02]} Bb7 {[%emt 0:00:23]} 32. Ne3 {[%emt 0:00:11]} Qd7 {[%emt 0:00:11]} 33. Qe2 {[%emt 0:00:37]} e4 {[%emt 0:00:11]} 34. Qd1 {[%emt 0:00:27]} Qxd1+ {[%emt 0:00:13]} 35. Nxd1 {[%emt 0:00:01]} exf3 {[%emt 0:00:06]} 36. Bxf3 {[%emt 0:00:14]} Bxf3+ {[%emt 0:00:14]} 37. Nxf3 {[%emt 0:00:01]} Ne4 {[%emt 0:00:06]} 38. Kg2 {[%emt 0:00:17]} f5 {[%emt 0:00:08]} 39. Kf1 {[%emt 0:00:55]} Kf6 {[%emt 0:00:08]} 40. Ke1 {[%emt 0:00:13]} Nd6 {[%emt 0:00:16]} 41. Nd2 {[%emt 0:00:11]} Ke5 {[%emt 0:00:06]} 42. Nf2 {[%emt 0:00:09]} Nb7 {[%emt 0:00:15]} 43. Nd3+ {[%emt 0:00:02]} Kf6 {[%emt 0:00:04]} 44. Kf2 {[%emt 0:00:11]} g5 {[%emt 0:00:09]} 45. Kf3 {[%emt 0:00:19]} h5 {[%emt 0:00:10]} 46. h3 {[%emt 0:00:07]} a6 {[%emt 0:00:11]} 47. a4 {[%emt 0:00:02]} h4 {[%emt 0:00:13]} 48. g4 {[%emt 0:00:30]} fxg4+ {[%emt 0:00:14]} 49. Kxg4 {[%emt 0:00:03]} Kg6 {[%emt 0:00:07]} 50. Ne4 {[%emt 0:00:04]} Kh6 {[%emt 0:00:13]} 51. c5 {[%emt 0:00:53]} bxc5 {[%emt 0:00:07]} 52. Ndxc5 {[%emt 0:00:09]} Nbxc5 {[%emt 0:00:13]} 53. Nxc5 {[%emt 0:00:13]} Nc7 {[%emt 0:00:05]} 54. c4 {[%emt 0:00:01]} 1-0